bitfinex/quotes_SOLUSD_20250917
["timestamp","ask_amount","ask_price","bid_price","bid_amount"]
[1758138937444,7.90798183,238.99,238.92,22.5572368]
[1758138937641,0.72,238.97,238.94,7.90798183]
[1758138938119,0.72,238.97,238.94,12.09295895]
[1758138938514,0.72,238.96,238.94,4.18497712]
[1758138938733,0.72,238.98,238.94,4.18497712]
[1758138939017,0.72,238.97,238.92,4.1853544]
[1758138939227,0.72,238.96,238.92,4.1853544]
[1758138939421,0.72,238.95,238.92,4.1853544]
[1758138939632,0.72,238.98,238.92,12.09333623]
[1758138940022,0.72,238.98,238.93,7.90798183]
[1758138940222,8.62798183,238.97,238.91,0.03]
[1758138940621,7.90798183,238.96,238.91,0.03]
[1758138940818,7.90798183,238.94,238.91,0.03]
[1758138941026,0.72,238.95,238.91,0.03]
[1758138941358,0.72,238.93,238.91,0.03]
[1758138941723,7.90798183,238.93,238.91,0.03]
[1758138941920,0.72,238.92,238.91,0.03]
[1758138942353,0.72,238.98,238.91,7.93798183]
[1758138942526,0.72,238.98,238.95,7.90798183]
[1758138942724,34.0,239.01,238.95,7.90798183]
[1758138942725,0.72,238.97,238.95,7.90798183]
[1758138943026,0.78,239.01,238.92,26.41855014]
[1758138943230,0.78,239.01,238.96,7.90798183]
[1758138943421,0.72,239.0,238.95,7.90798183]
[1758138943757,7.90798183,238.98,238.91,0.03]
[1758138943924,7.90798183,238.96,238.91,0.03]
[1758138944121,0.72,238.97,238.91,7.93798183]
[1758138944319,7.90798183,238.92,238.91,0.03]
[1758138944739,8.62798183,238.92,238.91,0.03]
[1758138945134,0.72,238.92,238.91,0.03]
[1758138945324,8.62798183,238.92,238.91,0.03]
[1758138945531,7.90798183,238.94,238.91,0.03]
[1758138945818,0.72,238.95,238.91,0.03]
[1758138946049,7.90798183,238.96,238.91,0.03]
[1758138946339,0.72,238.93,238.91,0.03]
[1758138946721,0.72,238.92,238.91,0.03]
[1758138947444,8.62798183,238.92,238.91,0.03]
[1758138947746,0.72,238.95,238.91,7.93798183]
[1758138947948,26.0,238.99,238.92,7.90798183]
[1758138948155,0.72,238.98,238.96,7.90798183]
[1758138948322,0.06,239.01,238.96,7.90798183]
[1758138948526,0.72,239.0,238.96,12.0926297]
[1758138948924,0.72,239.0,238.97,7.90798183]
[1758138949154,0.06,239.01,238.99,7.90798183]
[1758138949556,0.06,239.01,238.96,4.60312795]
[1758138949855,0.78,239.01,238.97,7.90798183]
[1758138950037,0.06,239.01,238.97,7.90798183]
[1758138950245,0.72,239.0,238.98,4.1844079]
[1758138950845,0.72,238.99,238.95,7.90798183]
[1758138951147,0.72,238.98,238.94,12.09313291]
[1758138951471,0.06,239.01,238.96,7.90798183]
[1758138951634,0.72,239.0,238.96,7.90798183]
[1758138951833,0.06,239.01,238.94,14.64802878]
[1758138952145,0.06,239.01,239.0,7.90798183]
[1758138952349,0.06,239.01,239.0,12.09208224]
[1758138952765,0.06,239.01,238.95,47.53559401]
[1758138952766,8.68798183,239.01,238.92,4.18550142]
[1758138952935,0.72,239.0,238.93,7.90798183]
[1758138953134,7.96798183,239.01,238.96,7.90798183]
[1758138953135,0.06,239.01,238.96,7.90798183]
[1758138953339,0.72,239.0,238.95,7.90798183]
[1758138953657,0.06,239.01,238.92,14.64925497]
[1758138953658,8.62798183,238.99,238.92,4.18550142]
[1758138953860,8.62798183,238.98,238.92,30.18550142]
[1758138954043,0.72,238.98,238.92,38.09348325]
[1758138954242,0.72,238.98,238.91,0.03]
[1758138954442,0.78,239.01,238.95,7.90798183]
[1758138954650,0.78,239.01,238.96,7.90798183]
[1758138954865,0.72,239.0,238.96,7.90798183]
[1758138955167,0.72,238.99,238.95,7.90798183]
[1758138955868,0.06,239.01,238.97,7.90798183]
[1758138956044,0.06,239.01,238.98,7.90798183]
[1758138956370,0.06,239.01,238.99,4.18419477]
[1758138956565,0.06,239.01,238.98,7.90798183]
[1758138956868,0.72,239.0,238.97,7.90798183]
[1758138957049,0.72,239.0,238.96,7.90798183]
[1758138957455,0.06,239.01,238.98,7.90798183]
[1758138957858,0.06,239.01,238.97,7.90798183]
[1758138958061,0.06,239.01,238.98,7.90798183]
[1758138958257,0.06,239.01,238.94,14.64793612]
[1758138958258,0.06,239.01,239.0,7.90798183]
[1758138958469,0.06,239.01,239.0,12.09208224]
[1758138959350,0.06,239.01,239.0,12.44208224]
[1758138959544,0.06,239.01,239.0,12.09208224]
[1758138959950,0.06,239.04,239.03,26.0]
[1758138960156,0.06,239.04,239.03,33.90798183]
[1758138960359,0.06,239.04,239.03,38.44155711]
[1758138960551,0.06,239.08,239.03,62.49608932]
[1758138960754,0.06,239.08,239.07,33.90798183]
[1758138961175,0.06,239.08,239.07,26.35]
[1758138961379,0.06,239.08,239.07,34.25798183]
[1758138961565,0.72,239.08,238.98,4.44778996]
[1758138961768,0.66,239.07,238.98,7.90798183]
[1758138962068,7.90798183,239.0,238.93,7.90798183]
[1758138962266,7.90798183,239.0,238.92,1.67584893]
[1758138962267,7.90798183,238.99,238.92,4.18550142]
[1758138962474,7.90798183,238.99,238.95,26.0]
[1758138963150,0.68,239.01,238.95,26.0]
[1758138963350,7.90798183,238.98,238.94,4.18515108]
[1758138963685,0.68,239.0,238.92,4.18535248]
[1758138963994,7.90798183,239.0,238.93,13.59559401]
[1758138964147,26.0,239.07,238.94,0.35]
[1758138964350,7.90798183,239.03,238.96,4.1848008]
[1758138964550,7.90798183,239.01,238.96,4.1848008]
[1758138964879,7.90798183,238.99,238.95,4.1849287]
[1758138965083,0.68,238.98,238.92,4.18534504]
[1758138965284,8.58798183,238.98,238.92,4.18534504]
[1758138965655,7.90798183,238.96,238.92,4.18534504]
[1758138965988,14.64253415,239.03,238.92,4.18534504]
[1758138965989,8.58798183,238.98,238.92,4.18534504]
[1758138966146,7.90798183,238.96,238.92,14.64909859]
[1758138966347,7.90798183,238.96,238.92,4.18534504]
[1758138966569,0.68,238.95,238.92,4.18534504]
[1758138966782,8.58798183,238.94,238.91,0.03]
[1758138967287,7.90798183,238.92,238.91,0.03]
[1758138967656,8.58798183,238.92,238.91,0.03]
[1758138968985,0.68,238.92,238.91,0.03]
[1758138969965,7.90798183,238.93,238.91,0.03]
[1758138970752,8.58798183,238.93,238.91,0.03]
[1758138970953,0.68,238.93,238.91,0.03]
[1758138971152,8.58798183,238.93,238.91,0.03]
[1758138971475,7.90798183,238.93,238.91,0.03]
[1758138971676,8.58798183,238.93,238.91,0.03]
[1758138972286,0.68,238.92,238.91,0.03]
[1758138972976,8.58798183,238.95,238.91,0.03]
[1758138973380,0.68,238.94,238.91,0.03]
[1758138973781,0.68,238.93,238.91,0.03]
[1758138974486,0.68,238.97,238.91,0.03]
[1758138974688,0.68,239.0,238.93,4.18532624]
[1758138974990,0.68,238.99,238.93,4.18532624]
[1758138977096,0.68,239.02,238.94,7.90798183]
[1758138977299,0.68,239.02,238.96,7.90798183]
[1758138977599,0.68,239.01,238.96,7.90798183]
[1758138977779,8.58798183,239.0,238.94,26.0]
[1758138978396,0.68,238.99,238.92,30.18548859]
[1758138978578,2.8120708,239.06,238.92,4.18548859]
[1758138978579,8.58798183,238.98,238.92,4.18548859]
[1758138979473,12.77247154,238.98,238.92,4.18548859]
[1758138979679,7.90798183,238.96,238.91,0.03]
[1758138979876,7.90798183,238.95,238.91,0.03]
[1758138980076,8.58798183,238.95,238.91,0.03]
[1758138980290,7.90798183,238.93,238.91,0.03]
[1758138980775,0.68,238.92,238.91,0.03]
[1758138982386,4.86550142,238.92,238.91,0.03]
[1758138983219,0.68,238.92,238.91,0.03]
[1758138983383,8.58798183,238.92,238.91,0.03]
[1758138984394,12.77348325,238.92,238.91,0.03]
[1758138984702,8.58798183,238.92,238.91,0.03]
[1758138985711,12.77348325,238.92,238.91,0.03]
[1758138985892,8.58798183,238.92,238.91,0.03]
[1758138986209,12.77348325,238.92,238.91,0.03]
[1758138986622,26.36907726,238.92,238.91,0.03]
[1758138987716,29.1794962,238.92,238.91,0.03]
[1758138989146,60.28907726,238.92,238.91,0.03]
[1758138989299,26.36907726,238.92,238.91,0.03]
[1758138989508,60.28907726,238.92,238.91,0.03]
[1758138990005,64.14562367,238.92,238.91,0.03]
[1758138990605,13.59559401,238.91,238.9,1e-08]
[1758138990827,20.74334276,238.91,238.9,1e-08]
[1758138991126,45.60901937,238.91,238.9,1e-08]
[1758138992128,47.50357584,238.88,238.85,1e-08]
[1758138992334,21.50357584,238.86,238.85,1e-08]
[1758138992510,55.42357584,238.86,238.85,1e-08]
[1758138992842,56.12357584,238.86,238.85,1e-08]
[1758138993206,60.31012863,238.86,238.85,1e-08]
[1758138993921,57.44863756,238.86,238.85,1e-08]
[1758138995607,62.49512832,238.86,238.85,1e-08]
[1758138995811,65.29702916,238.86,238.85,1e-08]
[1758138996424,5.04649076,238.76,238.71,0.03]
[1758138996625,33.92,238.75,238.71,0.03]
[1758138997231,5.04649076,238.74,238.71,0.03]
[1758138997617,5.04649076,238.74,238.72,0.35]
[1758138998131,38.96649076,238.75,238.72,0.35]
[1758138998319,4.18820078,238.77,238.71,0.03]
[1758138998320,33.92,238.76,238.73,0.35]
[1758138998833,33.92,238.76,238.74,0.35]
[1758138999146,33.92,238.77,238.74,0.35]
[1758138999435,10.46701854,238.85,238.74,0.35]
[1758138999436,33.92,238.89,238.76,26.0]
[1758138999615,38.10618227,238.89,238.83,5.04649076]
[1758138999814,33.92,238.89,238.83,9.23348213]
[1758139000048,5.04649076,238.91,238.83,9.23348213]
[1758139000338,26.0,238.9,238.87,5.04649076]
[1758139000537,59.92,238.9,238.86,5.04649076]
[1758139001220,33.92,238.89,238.86,5.04649076]
[1758139001436,13.59559401,238.86,238.76,26.0]
[1758139001623,5.04649076,238.84,238.78,4.18795544]
[1758139001823,9.93346035,238.84,238.77,5.04649076]
[1758139002038,33.92,238.85,238.79,5.04649076]
[1758139002343,33.92,238.85,238.78,0.35]
[1758139002344,43.15323314,238.85,238.78,5.04649076]
[1758139002709,43.15323065,238.85,238.77,4.18807731]
[1758139003010,38.10673989,238.85,238.77,4.18807731]
[1758139003214,5.04649076,238.84,238.77,4.18807731]
[1758139003840,38.80673989,238.85,238.79,4.18778005]
[1758139004051,5.04649076,238.84,238.79,4.18778005]
[1758139005251,5.04649076,238.84,238.78,0.2517]
[1758139005420,5.74649076,238.83,238.78,0.2517]
[1758139005837,0.7,238.82,238.78,0.2517]
[1758139006034,5.04649076,238.83,238.78,0.2517]
[1758139006339,5.04649076,238.79,238.78,0.2517]
[1758139006720,5.74649076,238.79,238.78,0.2517]
[1758139007247,5.04649076,238.79,238.78,0.2517]
[1758139007430,0.7,238.81,238.78,0.2517]
[1758139007620,33.92,238.8,238.78,0.2517]
[1758139007821,39.66649076,238.8,238.78,0.2517]
[1758139008021,5.74649076,238.79,238.78,0.2517]
[1758139009049,5.04649076,238.79,238.78,0.2517]
[1758139009342,5.74649076,238.79,238.78,0.2517]
[1758139010147,9.93427081,238.79,238.78,0.2517]
[1758139010344,23.52986482,238.79,238.78,0.0017]
[1758139011037,26.7,238.82,238.78,0.0017]
[1758139011243,5.04649076,238.8,238.78,0.0017]
[1758139011439,5.04649076,238.79,238.78,0.0017]
[1758139011636,5.74649076,238.79,238.78,0.0017]
[1758139011943,9.93427081,238.79,238.78,0.0017]
[1758139012152,9.93427081,238.79,238.78,0.0317]
[1758139013127,4.88778005,238.79,238.78,0.0317]
[1758139013327,9.93427081,238.79,238.78,0.0317]
[1758139014024,5.74649076,238.79,238.78,0.0317]
[1758139014547,9.93427081,238.79,238.78,0.0317]
[1758139014734,5.04649076,238.79,238.78,0.0317]
[1758139015440,38.96649076,238.79,238.78,0.0317]
[1758139015840,5.04649076,238.81,238.78,0.0317]
[1758139016465,33.92,238.8,238.78,0.0317]
[1758139016862,31.04649076,238.82,238.78,0.0317]
[1758139017165,33.92,238.81,238.78,0.6317]
[1758139017365,4.18701164,238.84,238.78,0.6317]
[1758139017682,33.92,238.83,238.78,0.6317]
[1758139018466,33.92,238.83,238.78,0.0317]
[1758139018663,38.10711988,238.83,238.78,0.0317]
[1758139018967,38.80711988,238.83,238.78,0.0317]
[1758139019339,0.7,238.82,238.78,0.0317]
[1758139019540,5.04649076,238.81,238.78,0.0317]
[1758139019735,5.74649076,238.82,238.78,0.0317]
[1758139020044,38.96649076,238.83,238.78,0.0317]
[1758139020255,33.92,238.83,238.79,0.6]
[1758139020446,33.92,238.83,238.78,4.21965544]
[1758139020644,33.92,238.83,238.79,0.6]
[1758139020862,0.06,238.85,238.79,0.6]
[1758139021063,33.96,238.85,238.81,5.04649076]
[1758139021260,33.96,238.85,238.8,5.04649076]
[1758139021447,33.96,238.85,238.79,5.64649076]
[1758139021955,33.96,238.85,238.8,5.04649076]
[1758139022139,33.96,238.85,238.8,5.64649076]
[1758139022340,33.96,238.85,238.8,9.83401812]
[1758139022536,33.96,238.85,238.78,10.4998886]
[1758139022537,5.04649076,238.83,238.78,0.03]
[1758139022761,33.9,238.82,238.78,0.03]
[1758139023068,5.04649076,238.8,238.78,0.03]
[1758139023265,38.94649076,238.79,238.78,0.03]
[1758139023565,39.66649076,238.79,238.78,0.03]
[1758139024742,43.85427081,238.79,238.78,0.03]
[1758139025168,39.66649076,238.79,238.78,0.03]
[1758139025353,43.85427081,238.79,238.78,0.03]
[1758139025669,38.94649076,238.79,238.78,0.03]
[1758139025870,43.85427081,238.79,238.78,0.03]
[1758139026070,9.95427081,238.79,238.78,0.03]
[1758139026240,43.85427081,238.79,238.78,0.03]
[1758139026442,9.95427081,238.79,238.78,0.03]
[1758139026639,43.85427081,238.79,238.78,0.03]
[1758139026865,38.80778005,238.79,238.78,0.03]
[1758139027050,33.9,238.79,238.78,0.03]
[1758139027247,38.94649076,238.79,238.78,0.03]
[1758139027669,33.9,238.79,238.78,0.03]
[1758139028566,5.04649076,238.81,238.78,0.03]
[1758139028749,33.9,238.8,238.78,0.03]
[1758139029294,4.90710098,238.83,238.78,0.03]
[1758139029295,33.9,238.83,238.79,5.04649076]
[1758139030152,0.06,238.85,238.79,5.04649076]
[1758139030465,33.9,238.84,238.8,5.04649076]
[1758139030661,33.9,238.84,238.79,5.04649076]
[1758139030865,5.04649076,238.8,238.78,0.03]
[1758139031079,2.81461472,238.84,238.79,5.04649076]
[1758139031448,2.81461472,238.84,238.78,5.07649076]
[1758139031774,2.81461472,238.84,238.79,5.04649076]
[1758139032265,5.76649076,238.83,238.78,0.03]
[1758139032577,33.9,238.82,238.78,0.03]
[1758139032781,33.9,238.82,238.78,5.07649076]
[1758139033160,5.04649076,238.84,238.78,0.03]
[1758139033360,2.81665806,238.83,238.78,0.03]
[1758139033561,2.81665806,238.83,238.78,9.2643661]
[1758139034277,2.81665806,238.83,238.78,5.07649076]
[1758139034455,3.53665806,238.83,238.78,4.2179026]
[1758139034662,0.72,238.82,238.78,4.2179026]
[1758139034861,33.9,238.84,238.79,5.04649076]
[1758139035058,33.88,238.84,238.8,4.18760469]
[1758139035292,33.88,238.84,238.81,5.04649076]
[1758139035586,33.88,238.84,238.8,5.04649076]
[1758139035971,34.6,238.84,238.8,5.04649076]
[1758139036200,0.72,238.83,238.78,0.03]
[1758139036366,5.76649076,238.83,238.78,0.03]
[1758139036568,0.72,238.82,238.78,0.03]
[1758139036964,0.72,238.81,238.78,0.03]
[1758139037384,5.04649076,238.79,238.78,0.03]
[1758139037762,5.04649076,238.76,238.75,0.03]
[1758139038085,38.92649076,238.76,238.75,0.03]
[1758139038291,39.64649076,238.76,238.75,0.03]
[1758139040871,73.70106041,238.76,238.75,0.03]
[1758139041067,87.29665442,238.76,238.75,0.03]
[1758139041466,61.29665442,238.76,238.75,0.03]
[1758139042571,82.25016366,238.76,238.75,0.03]
[1758139042771,35.63275417,238.76,238.75,0.03]
[1758139042970,37.74626341,238.76,238.75,0.03]
[1758139043190,37.74629345,238.76,238.75,0.03]
[1758139044191,36.69824455,238.76,238.75,0.03]
[1758139045188,47.70109022,238.76,238.75,0.03]
[1758139045571,61.29668423,238.76,238.75,0.03]
[1758139045771,87.29668423,238.76,238.75,0.03]
[1758139048295,61.29668423,238.76,238.75,0.03]
[1758139048886,73.57997539,238.76,238.75,0.03]
[1758139050276,52.06188723,238.76,238.75,0.03]
[1758139050483,57.10837799,238.76,238.75,0.03]
[1758139051100,37.74629322,238.76,238.75,0.03]
[1758139051304,41.93459946,238.76,238.75,0.03]
[1758139051608,46.98109022,238.76,238.75,0.03]
[1758139051793,47.70109022,238.76,238.75,0.03]
[1758139052109,61.29668423,238.76,238.75,0.03]
[1758139053795,64.17973639,238.76,238.75,0.03]
[1758139054307,90.17973639,238.76,238.75,0.03]
[1758139054498,90.17977634,238.76,238.75,0.03]
[1758139055480,34.05463941,238.76,238.75,0.03]
[1758139055706,70.60778747,238.76,238.75,0.03]
[1758139055881,48.79609371,238.76,238.75,0.03]
[1758139056213,50.56416736,238.76,238.75,0.03]
[1758139056591,48.79609371,238.76,238.75,0.03]
[1758139056810,44.60778747,238.76,238.75,0.03]
[1758139057111,45.65586777,238.76,238.75,0.03]
[1758139057305,48.79609371,238.76,238.75,0.03]
[1758139057481,46.37588275,238.76,238.75,0.03]
[1758139057687,50.56418899,238.76,238.75,0.03]
[1758139058008,49.51609371,238.76,238.75,0.03]
[1758139059988,50.56418899,238.76,238.75,0.03]
[1758139060996,40.86655079,238.76,238.75,0.03]
[1758139061198,48.79609371,238.76,238.75,0.03]
[1758139061709,40.86655079,238.76,238.75,0.03]
[1758139061892,48.79609371,238.76,238.75,0.03]
[1758139062513,40.31559401,238.79,238.75,0.03]
[1758139062514,30.18779537,238.79,238.75,0.03]
[1758139062701,33.92954292,238.77,238.75,0.03]
[1758139063021,0.72,238.83,238.75,0.03]
[1758139063219,45.9769918,238.81,238.75,0.03]
[1758139063523,33.86,238.8,238.76,8.55954292]
[1758139063820,33.86,238.79,238.76,0.63]
[1758139064007,33.86,238.78,238.76,0.63]
[1758139064493,33.86,238.78,238.77,0.63]
[1758139064687,33.86,238.78,238.75,7.95954292]
[1758139064893,33.86,238.78,238.76,0.63]
[1758139065494,33.86,238.78,238.76,4.81817078]
[1758139065917,33.86,238.78,238.76,4.18817078]
[1758139066296,33.86,238.78,238.77,0.63]
[1758139066715,0.06,238.82,238.77,0.63]
[1758139066913,33.84,238.81,238.78,8.55954292]
[1758139067102,33.84,238.81,238.79,0.63]
[1758139067291,33.9,238.81,238.78,7.92954292]
[1758139067491,33.9,238.81,238.76,8.55954292]
[1758139067788,33.84,238.8,238.77,8.55954292]
[1758139068009,0.06,238.81,238.77,0.63]
[1758139068202,33.84,238.8,238.75,0.03]
[1758139068415,33.84,238.8,238.76,4.18830624]
[1758139069007,33.84,238.8,238.76,4.81830624]
[1758139070224,33.84,238.8,238.75,7.95954292]
[1758139070225,33.84,238.8,238.75,4.21847037]
[1758139070408,0.72,238.79,238.75,0.03]
[1758139070591,33.84,238.78,238.75,0.03]
[1758139070925,7.92954292,238.77,238.75,0.03]
[1758139071129,33.84,238.76,238.75,0.03]
[1758139071439,46.67784916,238.76,238.75,0.03]
[1758139072120,45.95784916,238.76,238.75,0.03]
[1758139072531,46.67784916,238.76,238.75,0.03]
[1758139073130,42.48954292,238.76,238.75,0.03]
[1758139073718,46.67784916,238.76,238.75,0.03]
[1758139075247,49.49124946,238.76,238.75,0.03]
[1758139076748,36.6334003,238.76,238.75,0.03]
[1758139077045,41.74954292,238.76,238.75,0.03]
[1758139077215,44.56397934,238.76,238.75,0.03]
[1758139077722,33.82,238.76,238.75,0.03]
[1758139078315,3.24458833,238.78,238.75,0.03]
[1758139078520,37.06458833,238.78,238.75,0.03]
[1758139079346,33.82,238.78,238.75,0.03]
[1758139080238,26.78,238.81,238.75,0.03]
[1758139080418,33.82,238.8,238.76,3.87458833]
[1758139080619,33.82,238.8,238.77,0.63]
[1758139080940,33.82,238.8,238.78,0.63]
[1758139081143,33.82,238.8,238.77,3.24458833]
[1758139081319,33.82,238.8,238.76,4.18830624]
[1758139081519,38.00762772,238.8,238.75,0.03]
[1758139081724,41.25221605,238.8,238.75,0.03]
[1758139081924,41.25221605,238.8,238.75,4.21847603]
[1758139081925,37.06458833,238.8,238.75,4.21847603]
[1758139082324,33.82,238.8,238.75,4.21847603]
[1758139082737,34.53,238.8,238.75,0.03]
[1758139083044,3.24458833,238.76,238.75,0.03]
[1758139083243,37.06458833,238.76,238.75,0.03]
[1758139083423,44.78000779,238.76,238.75,0.03]
[1758139083747,10.96000779,238.76,238.75,0.03]
[1758139084055,33.8,238.77,238.75,0.03]
[1758139084218,0.06,238.81,238.76,3.24458833]
[1758139084544,33.8,238.8,238.78,3.24458833]
[1758139085550,33.86,238.81,238.8,4.18760469]
[1758139085753,33.86,238.81,238.8,7.43219302]
[1758139085930,0.06,238.81,238.8,7.43219302]
[1758139086728,0.06,238.81,238.77,11.10007687]
[1758139086729,0.06,238.81,238.79,3.24458833]
[1758139086933,0.06,238.81,238.78,3.24458833]
[1758139087457,0.06,238.81,238.79,3.24458833]
[1758139088125,0.06,238.81,238.8,3.24458833]
[1758139088326,0.06,238.81,238.8,3.87458833]
[1758139088729,0.06,238.81,238.8,8.06219302]
[1758139089838,0.06,238.81,238.8,3.24458833]
[1758139090352,0.06,238.81,238.8,8.06219302]
[1758139091128,0.06,238.81,238.8,7.43219302]
[1758139091568,0.06,238.81,238.8,8.06219302]
[1758139092156,0.06,238.81,238.8,7.43219302]
[1758139092560,0.06,238.81,238.8,8.06219302]
[1758139093278,0.06,238.81,238.8,34.06219302]
[1758139093776,0.06,238.82,238.8,37.30678135]
[1758139093948,0.06,238.82,238.81,29.87458833]
[1758139094153,0.06,238.82,238.81,30.29333126]
[1758139094348,0.06,238.82,238.81,29.87458833]
[1758139094554,1e-08,238.82,238.81,43.88892527]
[1758139094751,1e-08,238.82,238.81,48.5763546]
[1758139095554,1e-08,238.82,238.81,82.3563546]
[1758139096497,0.06,238.9,238.84,26.0]
[1758139096660,0.06,238.9,238.87,3.24458833]
[1758139096976,0.06,238.9,238.87,7.43096585]
[1758139097179,0.06,238.9,238.87,8.06096585]
[1758139098063,0.06,238.9,238.87,41.82096585]
[1758139098480,0.06,238.9,238.89,26.0]
[1758139098668,0.06,238.9,238.89,29.24458833]
[1758139098988,3.44458833,239.02,238.9,26.0]
[1758139099161,0.71,238.97,238.9,26.0]
[1758139099985,0.71,238.97,238.95,3.24458833]
[1758139100161,0.71,238.97,238.91,4.18567661]
[1758139100162,0.71,238.97,238.94,3.24458833]
[1758139100490,0.71,238.99,238.95,3.24458833]
[1758139100657,0.71,238.98,238.94,3.24458833]
[1758139101560,0.71,238.98,238.95,3.24458833]
[1758139101760,0.71,238.98,238.94,3.24458833]
[1758139102170,0.71,238.98,238.95,3.24458833]
[1758139102588,0.91,239.02,238.96,3.24458833]
[1758139102767,0.91,239.02,238.97,3.24458833]
[1758139102972,0.71,239.01,238.97,3.24458833]
[1758139103294,0.71,239.0,238.96,3.24458833]
[1758139104409,0.71,239.0,238.97,4.18462568]
[1758139104585,0.71,239.0,238.96,3.24458833]
[1758139105683,0.2,239.02,238.96,3.24458833]
[1758139105684,0.71,238.99,238.96,3.24458833]
[1758139105887,0.71,238.98,238.9,4.18585182]
[1758139106188,0.71,238.97,238.92,3.24458833]
[1758139106360,0.71,238.96,238.92,4.18536743]
[1758139106760,0.71,238.95,238.92,4.18536743]
[1758139107192,0.2,239.02,238.96,26.0]
[1758139107372,0.2,239.02,238.99,3.24458833]
[1758139107689,0.2,239.02,238.98,3.24458833]
[1758139107893,0.2,239.02,238.97,26.0]
[1758139108222,0.2,239.02,238.99,3.24458833]
[1758139108430,0.2,239.02,239.0,4.18410041]
[1758139108920,0.2,239.02,239.01,3.24458833]
[1758139110509,0.2,239.02,239.01,7.42851368]
[1758139111613,0.91,239.02,238.95,10.46237805]
[1758139111797,0.91,239.02,239.01,3.24458833]
[1758139111995,0.91,239.02,239.0,3.24458833]
[1758139112293,0.2,239.02,239.01,3.24458833]
[1758139112494,0.2,239.02,239.01,7.42851368]
[1758139113311,0.86,239.02,238.96,30.18477421]
[1758139113530,0.2,239.02,238.99,3.24458833]
[1758139113920,0.66,239.01,238.97,26.0]
[1758139114229,0.66,239.01,238.99,3.24458833]
[1758139115003,0.2,239.02,239.0,3.24458833]
[1758139115218,0.2,239.02,239.01,3.24458833]
[1758139115930,0.2,239.02,239.01,2.07109892]
[1758139116934,0.86,239.02,238.99,2.07109892]
[1758139117117,0.36,239.02,238.99,2.07109892]
[1758139117626,0.06,239.04,239.01,2.07109892]
[1758139119403,0.72,239.04,239.01,2.07109892]
[1758139119824,0.06,239.02,239.01,6.25493815]
[1758139120029,0.72,239.02,239.0,2.07109892]
[1758139120332,0.06,239.02,239.0,2.07109892]
[1758139120628,0.06,239.02,238.97,30.88456177]
[1758139120929,0.66,239.01,238.97,4.18456177]
[1758139121434,0.06,239.02,238.98,0.7]
[1758139121933,0.06,239.02,239.01,2.07109892]
[1758139122428,0.06,239.02,238.96,26.7]
[1758139122734,0.66,239.01,238.99,2.07109892]
[1758139122933,0.06,239.02,238.99,6.25533077]
[1758139123257,0.06,239.02,239.01,2.07109892]
[1758139123763,0.06,239.02,239.0,0.7]
[1758139124064,0.06,239.02,239.01,2.07109892]
[1758139124431,0.06,239.02,239.01,2.77109892]
[1758139124831,0.06,239.02,239.01,6.95502427]
[1758139127975,0.06,239.02,239.01,6.25502427]
[1758139130461,0.06,239.02,239.01,6.95502427]
[1758139130672,0.72,239.02,239.0,4.18406767]
[1758139130837,0.66,239.01,239.0,4.18406767]
[1758139131037,0.66,239.01,238.99,30.18425525]
[1758139131361,0.06,239.02,239.0,2.07109892]
[1758139131557,0.06,239.02,238.99,30.18425525]
[1758139131740,0.06,239.02,239.01,2.07109892]
[1758139133162,0.06,239.02,239.01,6.25502427]